fUST/lending_fUST_20260112
["ID","MTS","AMOUNT","RATE_DAILY","PERIOD"]
[401359249,1768153845330,-2465.58666154,0.00025054,2]
[401359250,1768153845339,-500.0,0.00025069,2]
[401359251,1768153845348,-724.8,0.00025098,2]
[401359253,1768153845358,-7573.58766866,0.00025199,2]
[401359254,1768153845368,-250.0,0.00025205,2]
[401359255,1768153845378,-500.0,0.00025206,2]
[401359256,1768153845389,-2465.58666155,0.00025279,2]
[401359257,1768153845398,-500.0,0.00025343,2]
[401359259,1768153845407,-500.0,0.0002548,2]
[401359260,1768153845417,-413.89,0.000255,2]
[401359261,1768153845427,-864.6,0.000255,2]
[401359262,1768153845437,-500.0,0.00025617,2]
[401359263,1768153845448,-311.85701,0.00025699,3]
[401359264,1768153845459,-323.39571937,0.00025699,3]
[401359265,1768153845470,-335.36136099,0.00025699,3]
[401359266,1768153845480,-250.0,0.00025699,3]
[401359267,1768153845489,-347.76973134,0.00025699,3]
[401359268,1768153845501,-151.0,0.00025699,3]
[401359270,1768153845511,-250.0,0.00025699,3]
[401359272,1768153845522,-496.47127164,0.00025699,3]
[401359274,1768153845533,-360.6372114,0.00025699,3]
[401359275,1768153845543,-151.0,0.00025699,3]
[401359277,1768153845554,-250.0,0.00025699,3]
[401359278,1768153845566,-514.84070869,0.00025699,3]
[401359279,1768153845576,-296.59935167,0.00025699,3]
[401359280,1768153845588,-497.54745077,0.00025699,3]
[401359281,1768153845600,-151.0,0.00025699,3]
[401359282,1768153845611,-250.0,0.00025699,3]
[401359283,1768153845620,-533.88981491,0.00025699,3]
[401359284,1768153845630,-151.0,0.00025699,3]
[401359285,1768153845641,-250.0,0.00025699,3]
[401359286,1768153845651,-553.64373807,0.00025699,3]
[401359287,1768153845662,-252.94566259,0.00025699,3]
[401359288,1768153845673,-151.0,0.00025699,3]
[401359289,1768153845683,-574.12855637,0.00025699,3]
[401359290,1768153845694,-151.0,0.00025699,3]
[401359291,1768153845705,-595.37131296,0.00025699,3]
[401359292,1768153845715,-151.0,0.00025699,3]
[401359293,1768153845725,-617.40005154,0.00025699,3]
[401359294,1768153845735,-241.8234162,0.00025699,3]
[401359295,1768153845744,-640.24385345,0.00025699,3]
[401359296,1768153845754,-663.93287602,0.00025699,3]
[401359297,1768153845764,-151.0,0.00025699,3]
[401359298,1768153845773,-250.0,0.00025699,3]
[401359299,1768153845783,-688.49839244,0.00025699,3]
[401359300,1768153845793,-151.0,0.00025699,3]
[401359301,1768153845803,-250.0,0.00025699,3]
[401359302,1768153845812,-713.97283296,0.00025699,3]
[401359303,1768153845822,-151.0,0.00025699,3]
[401359304,1768153845836,-250.0,0.00025699,3]
[401359305,1768153845846,-151.0,0.00025699,3]
[401359306,1768153845856,-250.0,0.00025699,3]
[401359307,1768153845867,-740.38982778,0.00025699,3]
[401359308,1768153845877,-151.0,0.00025699,3]
[401359309,1768153845887,-250.0,0.00025699,3]
[401359310,1768153845897,-767.7842514,0.00025699,3]
[401359311,1768153845907,-151.0,0.00025699,3]
[401359312,1768153845917,-250.0,0.00025699,3]
[401359313,1768153845928,-796.19226871,0.00025699,3]
[401359314,1768153845938,-151.0,0.00025699,3]
[401359315,1768153845947,-250.0,0.00025699,3]
[401359316,1768153845957,-250.0,0.00025699,3]
[401359317,1768153845967,-825.65138265,0.00025699,3]
[401359318,1768153845976,-151.0,0.00025699,3]
[401359319,1768153845986,-151.0,0.00025699,3]
[401359320,1768153845995,-250.0,0.00025699,3]
[401359321,1768153846005,-250.0,0.00025699,3]
[401359322,1768153846014,-151.0,0.00025699,3]
[401359323,1768153846023,-151.0,0.00025699,3]
[401359324,1768153846033,-291.2784889,0.00025699,3]
[401359325,1768153846043,-250.0,0.00025699,3]
[401359326,1768153846052,-151.0,0.00025699,3]
[401359327,1768153846062,-2398.4119403,0.00025699,3]
[401359328,1768153846071,-151.0,0.00025699,3]
[401359329,1768153846161,-250.0,0.00025699,3]
[401359330,1768153846171,-151.0,0.00025699,3]
[401359331,1768153846181,-2487.15318209,0.00025699,3]
[401359332,1768153846191,-151.0,0.00025699,3]
[401359333,1768153846201,-250.0,0.00025699,3]
[401359334,1768153846210,-151.0,0.00025699,3]
[401359335,1768153846219,-2579.17784983,0.00025699,3]
[401359336,1768153846228,-151.0,0.00025699,3]
[401359337,1768153846238,-250.0,0.00025699,3]
[401359338,1768153846248,-250.0,0.00025699,3]
[401359339,1768153846258,-151.0,0.00025699,3]
[401359340,1768153846267,-2674.60743027,0.00025699,3]
[401359341,1768153846277,-151.0,0.00025699,3]
[401359342,1768153846287,-250.0,0.00025699,3]
[401359343,1768153846297,-250.0,0.00025699,3]
[401359344,1768153846306,-2773.56790519,0.00025699,3]
[401359345,1768153846316,-151.0,0.00025699,3]
[401359346,1768153846325,-250.0,0.00025699,3]
[401359347,1768153846334,-152.53645226,0.00025699,3]
[401359348,1768153846343,-250.0,0.00025699,3]
[401359349,1768153846352,-151.0,0.00025699,3]
[401359350,1768153846362,-2876.18991768,0.00025699,3]
[401359351,1768153846371,-250.0,0.00025699,3]
[401359352,1768153846380,-250.0,0.00025699,3]
[401359353,1768153846389,-151.0,0.00025699,3]
[401359354,1768153846399,-2982.60894464,0.00025699,3]
[401359355,1768153846408,-250.0,0.00025699,3]
[401359356,1768153846417,-250.0,0.00025699,3]
[401359357,1768153846426,-151.0,0.00025699,3]
[401359358,1768153846439,-3092.96547559,0.00025699,3]
[401359359,1768153846449,-250.0,0.00025699,3]
[401359360,1768153846459,-265.04542702,0.00025699,3]
[401359361,1768153846470,-3207.40519818,0.00025699,3]
[401359362,1768153846480,-151.0,0.00025699,3]
[401359363,1768153846489,-250.0,0.00025699,3]
[401359364,1768153846498,-3326.07919052,0.00025699,3]
[401359365,1768153846509,-151.0,0.00025699,3]
[401359366,1768153846519,-302.86950393,0.00025699,3]
[401359367,1768153846532,-3449.14412057,0.00025699,3]
[401359368,1768153846542,-151.0,0.00025699,3]
[401359369,1768153846551,-3576.76245303,0.00025699,3]
[401359370,1768153846560,-151.0,0.00025699,3]
[401359371,1768153846570,-500.0,0.00025699,3]
[401359372,1768153846579,-3709.10266379,0.00025699,3]
[401359373,1768153846588,-500.0,0.00025699,3]
[401359374,1768153846597,-151.0,0.00025699,3]
[401359375,1768153846607,-3846.33946235,0.00025699,3]
[401359376,1768153846616,-500.0,0.00025699,3]
[401359377,1768153846626,-3988.65402246,0.00025699,3]
[401359378,1768153846635,-500.0,0.00025699,3]
[401359379,1768153846645,-500.0,0.00025699,3]
[401359380,1768153846655,-500.0,0.00025699,3]
[401359381,1768153846664,-500.0,0.00025699,3]
[401359382,1768153846674,-500.0,0.00025699,3]
[401359383,1768153846683,-500.0,0.00025699,3]
[401359384,1768153846692,-500.0,0.00025699,3]
[401359385,1768153846702,-500.0,0.00025699,3]
[401359386,1768153846712,-350.0,0.00025753,2]
[401359387,1768153846722,-500.0,0.00025754,2]
[401359388,1768153846731,-2263.25436862,0.0002587,2]
[401359389,1768153846740,-500.0,0.00025891,2]
[401359390,1768153846750,-151.0,0.000259,11]
[401359391,1768153846759,-1093.65808012,0.00025959,2]
[401359392,1768153846773,-1993.14,0.00026,2]
[401359393,1768153846785,-529.98450437,0.00026,2]
[401359394,1768153846795,-225633.86139028,0.00026,30]
[401359395,1768153846805,-19900.0,0.00026,2]
[401359396,1768153846815,-198.0,0.00026,18]
[401359397,1768153846827,-413.89,0.00026,2]
[401359398,1768153846838,-864.6,0.00026,2]
[401359399,1768153846848,-500.0,0.00026028,2]
[401359400,1768153846858,-3862.33347776,0.00026037,2]
[401359401,1768153846867,-194.69412162,0.0002616,2]
[401359402,1768153846878,-500.0,0.00026165,2]
[401359403,1768153846888,-11773.83379707,0.00026215,2]
[401359404,1768153846898,-450.0,0.00026301,2]
[401359405,1768153846907,-500.0,0.00026302,2]
[401359406,1768153846917,-500.0,0.00026439,2]
[401359407,1768153846926,-1993.14,0.000265,2]
[401359408,1768153846937,-152.67,0.000265,2]
[401359409,1768153846947,-413.89,0.000265,2]
[401359410,1768153846957,-34058.26,0.000265,2]
[401359411,1768153846967,-864.6,0.000265,2]
[401359412,1768153846978,-257.00667027,0.00026576,2]
[401359413,1768153846990,-724.8,0.00026586,2]
[401359414,1768153847002,-163.23,0.000266,7]
[401359415,1768153847011,-164.06,0.000266,7]
[401359416,1768153847022,-3212.79,0.000266,14]
[401359417,1768153847033,-550.0,0.00026849,2]
[401359418,1768153847044,-2000.0,0.0002686,7]
[401359419,1768153847055,-5000.0,0.0002687,2]
[401359420,1768153847065,-151.0,0.000269,11]
[401359421,1768153847074,-643.73891296,0.00026905,11]
[401359422,1768153847083,-1993.14,0.000271,2]
[401359423,1768153847094,-413.89,0.000271,2]
[401359424,1768153847104,-864.6,0.000271,2]
[401359425,1768153847115,-394.08412848,0.0002739,7]
[401359426,1768153847125,-1000.0,0.00027397,8]
[401359427,1768153847135,-745.54429652,0.00027397,8]
[401359428,1768153847144,-663.704051,0.00027397,8]
[401359429,1768153847155,-344.667262,0.00027397,8]
[401359430,1768153847164,-208.705745,0.00027397,8]
[401359431,1768153847174,-500.0,0.00027397,8]
[401359432,1768153847184,-584.92818268,0.00027397,8]
[401359433,1768153847196,-240.94098718,0.00027397,8]
[401359434,1768153847206,-506.19561668,0.00027397,8]
[401359435,1768153847217,-470.16657396,0.00027397,8]
[401359436,1768153847227,-223.00612782,0.00027397,8]
[401359437,1768153847237,-500.0,0.00027397,8]
[401359438,1768153847247,-500.0,0.00027397,8]
[401359439,1768153847256,-289.81934989,0.00027397,8]
[401359440,1768153847266,-575.38785442,0.00027397,8]
[401359441,1768153847275,-512.75303942,0.00027397,8]
[401359442,1768153847284,-361.66476166,0.00027397,8]
[401359443,1768153847293,-500.0,0.00027397,8]
[401359444,1768153847302,-500.0,0.00027397,8]
[401359445,1768153847311,-500.0,0.00027397,8]
[401359446,1768153847320,-506.70821514,0.00027397,8]
[401359447,1768153847330,-1000.0,0.00027397,2]
[401359448,1768153847339,-500.0,0.00027397,8]
[401359449,1768153847348,-500.0,0.00027397,8]
[401359450,1768153847359,-500.0,0.00027397,8]
[401359451,1768153847368,-153.43170984,0.00027397,8]
[401359452,1768153847378,-500.0,0.00027397,8]
[401359453,1768153847387,-500.0,0.00027397,2]
[401359454,1768153847397,-525.79336527,0.00027397,8]
[401359455,1768153847406,-601.14032287,0.00027397,2]
[401359456,1768153847415,-277.33327289,0.00027397,8]
[401359457,1768153847425,-500.0,0.00027397,8]
[401359458,1768153847434,-500.0,0.00027397,8]
[401359459,1768153847443,-500.0,0.00027397,2]
[401359460,1768153847453,-154.49913443,0.00027397,8]
[401359461,1768153847462,-559.46886412,0.00027397,8]
[401359462,1768153847471,-517.41385528,0.00027397,8]
[401359463,1768153847481,-555.12064961,0.00027397,8]
[401359464,1768153847490,-515.77118193,0.00027397,8]
[401359465,1768153847499,-500.0,0.00027397,2]
[401359466,1768153847508,-261.89333374,0.00027397,8]
[401359467,1768153847518,-607.3523042,0.00027397,8]
[401359468,1768153847527,-496.30087179,0.00027397,8]
[401359469,1768153847536,-573.48613407,0.00027397,8]
[401359470,1768153847546,-546.35140966,0.00027397,8]
[401359471,1768153847556,-500.0,0.00027397,8]
[401359472,1768153847565,-571.20178268,0.00027397,8]
[401359473,1768153847574,-510.47228054,0.00027397,8]
[401359474,1768153847584,-502.99137935,0.00027397,8]
[401359475,1768153847593,-500.0,0.00027397,8]
[401359476,1768153847602,-532.68814088,0.00027397,8]
[401359477,1768153847611,-500.0,0.00027397,8]
[401359478,1768153847620,-599.43015721,0.00027397,8]
[401359479,1768153847630,-504.0948618,0.00027397,8]
[401359480,1768153847639,-556.78391806,0.00027397,8]
[401359481,1768153847648,-500.0,0.00027397,8]
[401359482,1768153847657,-523.47204712,0.00027397,8]
[401359483,1768153847668,-513.4448394,0.00027397,8]
[401359484,1768153847679,-500.0,0.00027397,8]
[401359485,1768153847689,-504.61600788,0.00027397,8]
[401359486,1768153847699,-755.83,0.00027397,8]
[401359487,1768153847709,-509.55608441,0.00027397,8]
[401359488,1768153847718,-559.00678652,0.00027397,8]
[401359489,1768153847804,-511.68339076,0.00027397,8]
[401359490,1768153847814,-337.63663526,0.00027397,8]
[401359491,1768153847825,-516.17782652,0.00027397,8]
[401359492,1768153847837,-357.28327772,0.00027397,8]
[401359493,1768153847848,-500.0,0.00027397,8]
[401359494,1768153847859,-150.97237527,0.00027397,8]
[401359495,1768153847869,-508.47586913,0.00027397,8]
[401359496,1768153847879,-534.30368528,0.00027397,8]
[401359497,1768153847889,-501.7237392,0.00027397,8]
[401359498,1768153847900,-692.07,0.00027397,2]
[401359499,1768153847911,-550.91570645,0.00027397,8]
[401359500,1768153847921,-525.47052968,0.00027397,8]
[401359501,1768153847930,-579.15898985,0.00027397,2]
[401359502,1768153847940,-500.0,0.00027397,8]
[401359503,1768153847950,-504.32900075,0.00027397,8]
[401359504,1768153847960,-514.24228966,0.00027397,8]
[401359505,1768153847969,-168.3895598,0.00027397,8]
[401359506,1768153847979,-500.0,0.00027397,8]
[401359507,1768153847989,-500.0,0.00027397,8]
[401359508,1768153847999,-504.06028956,0.00027397,8]
[401359509,1768153848009,-503.45730481,0.00027397,8]
[401359510,1768153848019,-503.1318343,0.00027397,8]
[401359511,1768153848028,-215.36077663,0.00027397,8]
[401359512,1768153848037,-587.39279836,0.00027397,8]
[401359513,1768153848047,-500.0,0.00027397,8]
[401359514,1768153848057,-571.59262155,0.00027397,8]
[401359515,1768153848067,-537.74011614,0.00027397,8]
[401359516,1768153848076,-503.81493644,0.00027397,8]
[401359517,1768153848086,-500.0,0.00027397,2]
[401359518,1768153848096,-505.38162549,0.00027397,8]
[401359519,1768153848105,-521.16032339,0.00027397,8]
[401359520,1768153848115,-504.58730957,0.00027397,8]
[401359521,1768153848125,-504.48438496,0.00027397,8]
[401359522,1768153848134,-582.56702915,0.00027397,8]
[401359523,1768153848144,-506.69367317,0.00027397,8]
[401359524,1768153848153,-500.0,0.00027397,8]
[401359525,1768153848163,-512.03508644,0.00027397,8]
[401359526,1768153848172,-509.09825176,0.00027397,8]
[401359527,1768153848182,-16913.26,0.00027397,8]
[401359528,1768153848191,-510.73351172,0.00027397,8]
[401359529,1768153848201,-511.46237537,0.00027397,8]
[401359530,1768153848211,-155.09141946,0.00027397,8]
[401359531,1768153848220,-500.0,0.00027397,8]
[401359532,1768153848230,-15325.55,0.00027397,3]
[401359533,1768153848239,-501.48369202,0.00027397,8]
[401359534,1768153848249,-500.0,0.00027397,8]
[401359535,1768153848258,-521.64444701,0.00027397,8]
[401359536,1768153848268,-512.51462059,0.00027397,8]
[401359537,1768153848277,-552.28498218,0.00027397,8]
[401359538,1768153848287,-2486.72,0.00027397,8]
[401359539,1768153848297,-522.33649511,0.00027397,8]
[401359540,1768153848307,-2226.28,0.00027397,8]
[401359541,1768153848316,-599.63821508,0.00027397,8]
[401359542,1768153848326,-505.45567173,0.00027397,8]
[401359543,1768153848335,-500.0,0.00027397,8]
[401359544,1768153848345,-3222.62,0.00027397,8]
[401359545,1768153848355,-425.00994657,0.00027397,8]
[401359546,1768153848365,-4899.58,0.00027397,8]
[401359547,1768153848375,-525.83016395,0.00027397,8]
[401359548,1768153848385,-527.49642559,0.00027397,8]
[401359549,1768153848395,-505.50165535,0.00027397,8]
[401359550,1768153848405,-593.48375245,0.00027397,8]
[401359551,1768153848414,-561.05106257,0.00027397,8]
[401359552,1768153848424,-169.16597099,0.00027397,8]
[401359553,1768153848434,-514.60578154,0.00027397,8]
[401359554,1768153848443,-261.29087669,0.00027397,8]
[401359555,1768153848453,-407.60874848,0.00027397,8]
[401359556,1768153848462,-517.20995713,0.00027397,8]
[401359557,1768153848472,-357.84852667,0.00027397,8]
[401359558,1768153848481,-504.12370539,0.00027397,8]
[401359559,1768153848491,-6797.13,0.00027397,8]
[401359560,1768153848500,-510.31728869,0.00027397,8]
[401359561,1768153848510,-2536.91,0.00027397,8]
[401359562,1768153848520,-239.81900026,0.00027397,8]
[401359563,1768153848530,-500.0,0.00027397,8]
[401359564,1768153848540,-165.09995213,0.00027397,8]
[401359565,1768153848550,-500.0,0.00027397,8]
[401359566,1768153848559,-1000.0,0.00027397,2]
[401359567,1768153848569,-4204.37,0.00027397,8]
[401359568,1768153848579,-150.87150933,0.00027397,8]
[401359569,1768153848589,-280.94769815,0.00027397,8]
[401359570,1768153848599,-511.42,0.00027397,8]
[401359571,1768153848609,-272.93074829,0.00027397,8]
[401359572,1768153848619,-195.29011335,0.00027397,8]
[401359573,1768153848629,-168.48995739,0.00027397,8]
[401359574,1768153848638,-505.71118481,0.00027397,8]
[401359575,1768153848648,-2011.31,0.00027397,8]
[401359576,1768153848658,-271.93960017,0.00027397,8]
[401359577,1768153848667,-163.11732391,0.00027397,8]
[401359578,1768153848677,-500.0,0.00027397,2]
[401359579,1768153848686,-150.1,0.00027397,3]
[401359580,1768153848696,-650.0,0.00027397,5]
[401359581,1768153848706,-1263.0136117,0.00027435,2]
[401359582,1768153848716,-45965.23489809,0.000275,2]
[401359583,1768153848726,-11773.83379707,0.00027597,2]
[401359584,1768153848735,-1993.14,0.000276,2]
[401359585,1768153848745,-413.89,0.000276,2]
[401359586,1768153848755,-864.6,0.000276,2]
[401359587,1768153848765,-158.0,0.00027644,25]
[401359588,1768153848774,-500.0,0.00027644,30]
[401359589,1768153848783,-500.0,0.00027644,30]
[401359590,1768153848793,-500.0,0.00027644,30]
[401359591,1768153848803,-500.0,0.00027644,30]
[401359592,1768153848812,-500.0,0.00027644,30]
[401359593,1768153848822,-500.0,0.00027644,30]
[401359594,1768153848835,-500.0,0.00027644,30]
[401359595,1768153848845,-500.0,0.00027644,30]
[401359596,1768153848855,-500.0,0.00027644,30]
[401359597,1768153848867,-500.0,0.00027644,30]
[401359598,1768153848877,-500.0,0.00027644,30]
[401359599,1768153848887,-500.0,0.00027644,30]
[401359600,1768153848896,-500.0,0.00027644,30]
[401359601,1768153848907,-500.0,0.00027644,30]
[401359602,1768153848918,-500.0,0.00027644,30]
[401359603,1768153848927,-500.0,0.00027644,30]
[401359604,1768153848937,-558.04768323,0.00027644,30]
[401359605,1768153848946,-1000.0,0.00027671,8]
[401359606,1768153848956,-500.0,0.00027671,8]
[401359607,1768153848965,-168.51621167,0.00027671,8]
[401359608,1768153848975,-524.57743511,0.00027671,8]
[401359609,1768153848984,-501.30732126,0.00027671,8]
[401359610,1768153848993,-505.35430273,0.00027671,8]
[401359611,1768153849003,-542.76368036,0.00027671,8]
[401359612,1768153849012,-1000.0,0.00027671,2]
[401359613,1768153849022,-199.25397957,0.00027671,8]
[401359614,1768153849033,-500.0,0.00027671,8]
[401359615,1768153849042,-503.55890318,0.00027671,8]
[401359616,1768153849051,-500.0,0.00027671,8]
[401359617,1768153849060,-500.0,0.00027671,2]
[401359618,1768153849069,-500.0,0.00027671,8]
[401359619,1768153849082,-500.0,0.00027671,8]
[401359620,1768153849094,-500.0,0.00027671,2]
[401359621,1768153849103,-500.0,0.00027671,2]
[401359622,1768153849112,-152.99622449,0.00027671,8]
[401359623,1768153849122,-500.0,0.00027671,8]
[401359624,1768153849132,-500.0,0.00027671,8]
[401359625,1768153849143,-503.86064142,0.00027671,8]
[401359626,1768153849153,-500.0,0.00027671,8]
[401359627,1768153849164,-755.83,0.00027671,8]
[401359628,1768153849174,-692.07,0.00027671,2]
[401359629,1768153849184,-311.04511253,0.00027671,8]
[401359630,1768153849194,-151.32658008,0.00027671,8]
[401359631,1768153849205,-500.0,0.00027671,8]
[401359632,1768153849216,-160.4969878,0.00027671,8]
[401359633,1768153849227,-515.87322948,0.00027671,2]
[401359634,1768153849236,-16913.26,0.00027671,8]
[401359635,1768153849246,-222.92460277,0.00027671,8]
[401359636,1768153849333,-15325.55,0.00027671,3]
[401359637,1768153849343,-354.9109568,0.00027671,8]
[401359638,1768153849352,-2486.72,0.00027671,8]
[401359639,1768153849362,-2226.28,0.00027671,8]
[401359640,1768153849371,-3222.62,0.00027671,8]
[401359641,1768153849380,-4899.58,0.00027671,8]
[401359642,1768153849389,-6797.13,0.00027671,8]
[401359643,1768153849399,-2536.91,0.00027671,8]
[401359644,1768153849408,-500.0,0.00027671,8]
[401359645,1768153849417,-500.0,0.00027671,8]
[401359646,1768153849426,-1000.0,0.00027671,2]
[401359647,1768153849436,-4204.37,0.00027671,8]
[401359648,1768153849446,-511.42,0.00027671,8]
[401359649,1768153849455,-2011.31,0.00027671,8]
[401359650,1768153849464,-500.0,0.00027671,2]
[401359651,1768153849473,-152.67,0.000277,2]
[401359652,1768153849482,-250.0,0.000277,7]
[401359653,1768153849491,-252.3,0.000277,7]
[401359654,1768153849501,-643.73891296,0.00027772,12]
[401359655,1768153849510,-5000.0,0.0002787,2]
[401359656,1768153849522,-173.58038977,0.00027875,30]
[401359657,1768153849531,-34058.26,0.000279,2]
[401359658,1768153849541,-1000.0,0.00027945,8]
[401359659,1768153849550,-514.0321533,0.00027945,8]
[401359660,1768153849561,-1000.0,0.00027945,2]
[401359661,1768153849571,-500.0,0.00027945,8]
[401359662,1768153849580,-500.0,0.00027945,8]
[401359663,1768153849591,-500.0,0.00027945,8]
[401359664,1768153849602,-500.0,0.00027945,8]
[401359665,1768153849611,-293.6950232,0.00027945,2]
[401359666,1768153849621,-500.0,0.00027945,2]
[401359667,1768153849630,-500.0,0.00027945,8]
[401359668,1768153849639,-500.0,0.00027945,8]
[401359669,1768153849648,-500.0,0.00027945,8]
[401359670,1768153849657,-755.83,0.00027945,8]
[401359671,1768153849667,-692.07,0.00027945,2]
[401359672,1768153849678,-500.0,0.00027945,8]
[401359673,1768153849687,-16913.26,0.00027945,8]
[401359674,1768153849697,-15325.55,0.00027945,3]
[401359675,1768153849706,-2486.72,0.00027945,8]
[401359676,1768153849715,-2226.28,0.00027945,8]
[401359677,1768153849725,-3222.62,0.00027945,8]
[401359678,1768153849734,-4899.58,0.00027945,8]
[401359679,1768153849743,-6797.13,0.00027945,8]
[401359680,1768153849752,-2536.91,0.00027945,8]
[401359681,1768153849762,-500.0,0.00027945,8]
[401359682,1768153849771,-500.0,0.00027945,8]
[401359683,1768153849780,-1000.0,0.00027945,2]
[401359684,1768153849790,-4204.37,0.00027945,8]
[401359685,1768153849802,-511.42,0.00027945,8]
[401359686,1768153849811,-2011.31,0.00027945,8]
[401359687,1768153849820,-505.36809114,0.00027945,2]
[401359688,1768153849834,-750.0,0.00027945,5]
[401359689,1768153849843,-250.0,0.00027945,5]
[401359690,1768153849853,-15330.50011171,0.00028,2]
[401359691,1768153849862,-520.4204079,0.00028,2]
[401359692,1768153849873,-3212.79,0.00028,14]
[401359693,1768153849883,-724.8,0.00028074,3]
[401359694,1768153849892,-61801.006823,0.00028082,10]
[401359695,1768153849905,-1993.14,0.000281,2]
[401359696,1768153849915,-413.89,0.000281,2]
[401359697,1768153849924,-167.63,0.000281,7]
[401359698,1768153849934,-864.6,0.000281,2]
[401359699,1768153849943,-1000.0,0.00028219,8]
[401359700,1768153849952,-1000.0,0.00028219,2]
[401359701,1768153849962,-500.0,0.00028219,8]
[401359702,1768153849971,-500.0,0.00028219,8]
[401359703,1768153849981,-500.0,0.00028219,8]
[401359704,1768153849991,-507.5672722,0.00028219,8]
[401359705,1768153850001,-500.0,0.00028219,2]
[401359706,1768153850011,-500.0,0.00028219,8]
[401359707,1768153850021,-500.0,0.00028219,8]
[401359708,1768153850032,-500.0,0.00028219,8]
[401359709,1768153850043,-755.83,0.00028219,8]
[401359710,1768153850053,-692.07,0.00028219,2]
[401359711,1768153850062,-500.0,0.00028219,8]
[401359712,1768153850073,-16913.26,0.00028219,8]
[401359713,1768153850085,-15325.55,0.00028219,3]
[401359714,1768153850094,-2486.72,0.00028219,8]
[401359715,1768153850104,-2226.28,0.00028219,8]
[401359716,1768153850114,-3222.62,0.00028219,8]
[401359717,1768153850126,-4899.58,0.00028219,8]
[401359718,1768153850136,-6797.13,0.00028219,8]
[401359719,1768153850147,-2536.91,0.00028219,8]
[401359720,1768153850157,-202.86433989,0.00028219,8]
[401359721,1768153850166,-500.0,0.00028219,8]
[401359722,1768153850177,-1000.0,0.00028219,2]
[401359723,1768153850187,-4204.37,0.00028219,8]
[401359724,1768153850197,-511.42,0.00028219,8]
[401359725,1768153850207,-2011.31,0.00028219,8]
[401359726,1768153850217,-1081.58434465,0.00028493,8]
[401359727,1768153850226,-1000.0,0.00028493,2]
[401359728,1768153850235,-500.0,0.00028493,8]
[401359729,1768153850244,-500.0,0.00028493,8]
[401359730,1768153850254,-500.0,0.00028493,8]
[401359731,1768153850263,-500.0,0.00028493,2]
[401359732,1768153850273,-500.0,0.00028493,8]
[401359733,1768153850282,-500.0,0.00028493,8]
[401359734,1768153850293,-500.0,0.00028493,8]
[401359735,1768153850303,-755.83,0.00028493,8]
[401359736,1768153850315,-692.07,0.00028493,2]
[401359737,1768153850325,-291.01350449,0.00028493,8]
[401359738,1768153850334,-16913.26,0.00028493,8]
[401359739,1768153850344,-15325.55,0.00028493,3]
[401359740,1768153850353,-2486.72,0.00028493,8]
[401359741,1768153850362,-2226.28,0.00028493,8]
[401359742,1768153850371,-3222.62,0.00028493,8]
[401359743,1768153850380,-4899.58,0.00028493,8]
[401359744,1768153850389,-6797.13,0.00028493,8]
[401359745,1768153850399,-2536.91,0.00028493,8]
[401359746,1768153850408,-500.0,0.00028493,8]
[401359747,1768153850418,-1000.0,0.00028493,2]
[401359748,1768153850427,-4204.37,0.00028493,8]
[401359749,1768153850437,-511.42,0.00028493,8]
[401359750,1768153850446,-2011.31,0.00028493,8]
[401359751,1768153850455,-652.10519323,0.00028493,5]
[401359752,1768153850465,-350.0,0.00028493,5]
[401359753,1768153850475,-1993.14,0.000286,2]
[401359754,1768153850485,-413.89,0.000286,2]